[Event "*** Titled Tuesday Blitz"]
[Site "Chess.com"]
[Date "2020.11.03"]
[Round "2"]
[White "grunbergmihai"]
[Black "LaPorfia"]
[Result "1-0"]
[WhiteElo "2470"]
[BlackElo "2291"]
[TimeControl "180+1"]
[EndTime "10:18:32 PST"]
[Termination "grunbergmihai won by resignation"]

1. Nf3 {[%clk 0:03:00.9]} 1... c5 {[%clk 0:02:59.2]} 2. c4 {[%clk 0:03:01.8]}
2... Nc6 {[%clk 0:02:58.9]} 3. g3 {[%clk 0:03:01.5]} 3... g6 {[%clk 0:02:58.6]}
4. Bg2 {[%clk 0:03:02.4]} 4... Bg7 {[%clk 0:02:58.4]} 5. O-O {[%clk 0:03:02.7]}
5... e5 {[%clk 0:02:58.6]} 6. Nc3 {[%clk 0:03:02.6]} 6... Nge7 {[%clk
0:02:58.6]} 7. d3 {[%clk 0:03:03]} 7... d6 {[%clk 0:02:58.6]} 8. a3 {[%clk
0:03:03]} 8... O-O {[%clk 0:02:58.1]} 9. Rb1 {[%clk 0:03:02.9]} 9... a5 {[%clk
0:02:58.3]} 10. Bg5 {[%clk 0:03:01.3]} 10... f6 {[%clk 0:02:56.1]} 11. Bd2
{[%clk 0:03:00.5]} 11... Be6 {[%clk 0:02:55.6]} 12. Ne1 {[%clk 0:02:59]} 12...
d5 {[%clk 0:02:40.1]} 13. cxd5 {[%clk 0:02:58.2]} 13... Nxd5 {[%clk 0:02:40.1]}
14. Nc2 {[%clk 0:02:58.5]} 14... Nd4 {[%clk 0:02:35.9]} 15. Ne3 {[%clk
0:02:50.2]} 15... Nxc3 {[%clk 0:02:19.8]} 16. bxc3 {[%clk 0:02:46.7]} 16... Nf5
{[%clk 0:02:04.4]} 17. Rxb7 {[%clk 0:02:40.5]} 17... Rb8 {[%clk 0:01:59.6]} 18.
Nxf5 {[%clk 0:02:35.9]} 18... Bxf5 {[%clk 0:01:57.4]} 19. Qb3+ {[%clk
0:02:33.3]} 19... Kh8 {[%clk 0:01:55.3]} 20. c4 {[%clk 0:02:26]} 20... Rxb7
{[%clk 0:01:27.8]} 21. Qxb7 {[%clk 0:02:24.5]} 21... Qb8 {[%clk 0:01:27.7]} 22.
Bxa5 {[%clk 0:02:20.1]} 22... Qxb7 {[%clk 0:01:22.1]} 23. Bxb7 {[%clk
0:02:19.2]} 23... Rb8 {[%clk 0:01:22.5]} 24. Bf3 {[%clk 0:02:15.3]} 24... Rb2
{[%clk 0:01:20.6]} 25. Ra1 {[%clk 0:02:02.6]} 25... Bd7 {[%clk 0:01:14.9]} 26.
Bc7 {[%clk 0:01:49.8]} 26... Ba4 {[%clk 0:01:06.6]} 27. Bd6 {[%clk 0:01:47.3]}
27... f5 {[%clk 0:01:05.9]} 28. e4 {[%clk 0:01:35.8]} 28... g5 {[%clk
0:00:45.8]} 29. Bxc5 {[%clk 0:01:13.3]} 29... g4 {[%clk 0:00:43.8]} 30. Bg2
{[%clk 0:01:12.7]} 30... f4 {[%clk 0:00:43.5]} 31. gxf4 {[%clk 0:01:04]} 31...
exf4 {[%clk 0:00:43.2]} 32. d4 {[%clk 0:01:04.5]} 32... h5 {[%clk 0:00:35]} 33.
e5 {[%clk 0:01:03.6]} 33... f3 {[%clk 0:00:35.3]} 34. Bf1 {[%clk 0:01:03.1]}
34... h4 {[%clk 0:00:23.8]} 35. Re1 {[%clk 0:01:02.3]} 35... Bh6 {[%clk
0:00:12.6]} 36. e6 {[%clk 0:00:56.2]} 36... Bd2 {[%clk 0:00:12]} 37. Re4 {[%clk
0:00:53.1]} 37... Rb1 {[%clk 0:00:11]} 38. e7 {[%clk 0:00:50.2]} 38... g3 {[%clk
0:00:08.3]} 39. e8=Q+ {[%clk 0:00:49.1]} 1-0

[Event "*** Titled Tuesday Blitz"]
[Site "Chess.com"]
[Date "2020.11.03"]
[Round "2"]
[White "Beca95"]
[Black "GMartin_Petrov"]
[Result "1-0"]
[WhiteElo "2957"]
[BlackElo "2615"]
[TimeControl "180+1"]
[EndTime "10:18:34 PST"]
[Termination "Beca95 won on time"]

1. d4 {[%clk 0:03:00.9]} 1... Nf6 {[%clk 0:02:59.1]} 2. c4 {[%clk 0:03:01.1]}
2... e6 {[%clk 0:02:59.4]} 3. Nf3 {[%clk 0:03:00.8]} 3... d5 {[%clk 0:02:59.4]}
4. Bg5 {[%clk 0:02:57.8]} 4... Be7 {[%clk 0:02:56.3]} 5. Nbd2 {[%clk 0:02:55.8]}
5... O-O {[%clk 0:02:54.8]} 6. Qc2 {[%clk 0:02:56.2]} 6... b6 {[%clk 0:02:45.1]}
7. e3 {[%clk 0:02:55.9]} 7... Bb7 {[%clk 0:02:44.3]} 8. cxd5 {[%clk 0:02:51.8]}
8... Nxd5 {[%clk 0:02:29.7]} 9. Bxe7 {[%clk 0:02:51.7]} 9... Qxe7 {[%clk
0:02:30.6]} 10. a3 {[%clk 0:02:52.2]} 10... Nd7 {[%clk 0:02:27]} 11. Bd3 {[%clk
0:02:51.4]} 11... h6 {[%clk 0:02:25.2]} 12. b4 {[%clk 0:02:44.9]} 12... e5
{[%clk 0:02:12.1]} 13. O-O {[%clk 0:02:44.6]} 13... exd4 {[%clk 0:02:07.9]} 14.
Nxd4 {[%clk 0:02:45.5]} 14... Ne5 {[%clk 0:02:03.5]} 15. Be4 {[%clk 0:02:44.1]}
15... Rad8 {[%clk 0:01:49]} 16. Rac1 {[%clk 0:02:41.3]} 16... Rc8 {[%clk
0:01:22.8]} 17. N2b3 {[%clk 0:02:25.3]} 17... c5 {[%clk 0:01:16.4]} 18. bxc5
{[%clk 0:02:24.3]} 18... bxc5 {[%clk 0:01:17.3]} 19. Nf5 {[%clk 0:02:13.6]}
19... Qf6 {[%clk 0:01:09.2]} 20. Nxc5 {[%clk 0:02:11]} 20... g6 {[%clk
0:00:54.5]} 21. Nd4 {[%clk 0:02:06.7]} 21... Ng4 {[%clk 0:00:43.9]} 22. Qe2
{[%clk 0:01:46.1]} 22... Rxc5 {[%clk 0:00:25]} 23. Rxc5 {[%clk 0:01:40]} 23...
Qd6 {[%clk 0:00:24.1]} 24. Qxg4 {[%clk 0:01:39.3]} 24... Qxc5 {[%clk 0:00:22.9]}
25. Bxg6 {[%clk 0:01:29]} 25... Nf6 {[%clk 0:00:22.7]} 26. Qg3 {[%clk
0:01:19.8]} 26... fxg6 {[%clk 0:00:21.7]} 27. Qxg6+ {[%clk 0:01:19.5]} 27... Kh8
{[%clk 0:00:21.4]} 28. Ne6 {[%clk 0:01:20.1]} 28... Qe7 {[%clk 0:00:11.1]} 29.
Qxh6+ {[%clk 0:01:19.8]} 29... Nh7 {[%clk 0:00:11.2]} 30. Nxf8 {[%clk
0:01:19.6]} 30... Qxf8 {[%clk 0:00:08.4]} 31. Qxf8+ {[%clk 0:01:19.5]} 31...
Nxf8 {[%clk 0:00:09.3]} 32. Rb1 {[%clk 0:01:19]} 32... Bd5 {[%clk 0:00:07.5]}
33. Rb5 {[%clk 0:01:18.3]} 33... Bc4 {[%clk 0:00:06.6]} 34. Rb8 {[%clk
0:01:18.3]} 34... Kg7 {[%clk 0:00:05.8]} 35. f4 {[%clk 0:01:12.7]} 35... Bd5
{[%clk 0:00:02.5]} 36. g4 {[%clk 0:01:08.2]} 36... Nd7 {[%clk 0:00:02.5]} 37.
Rd8 {[%clk 0:01:06.8]} 37... Bc6 {[%clk 0:00:02.4]} 38. Kf2 {[%clk 0:01:03.9]}
38... Nf6 {[%clk 0:00:02.3]} 39. Kg3 {[%clk 0:01:04.2]} 39... Ne4+ {[%clk
0:00:02.1]} 40. Kh4 {[%clk 0:01:04.5]} 40... Nc3 {[%clk 0:00:01.6]} 41. h3
{[%clk 0:01:03.6]} 1-0

[Event "*** Titled Tuesday Blitz"]
[Site "Chess.com"]
[Date "2020.11.03"]
[Round "2"]
[White "Chuchofrio1"]
[Black "obliviate12"]
[Result "0-1"]
[WhiteElo "2348"]
[BlackElo "2710"]
[TimeControl "180+1"]
[EndTime "10:18:34 PST"]
[Termination "obliviate12 won by resignation"]

1. e4 {[%clk 0:03:00.9]} 1... c6 {[%clk 0:02:58]} 2. d4 {[%clk 0:02:59.9]} 2...
d5 {[%clk 0:02:58.4]} 3. exd5 {[%clk 0:03:00.8]} 3... cxd5 {[%clk 0:02:59.3]} 4.
Bd3 {[%clk 0:02:58.3]} 4... Nf6 {[%clk 0:02:58.1]} 5. Bf4 {[%clk 0:02:51.7]}
5... Qb6 {[%clk 0:02:24.7]} 6. Na3 {[%clk 0:02:25.7]} 6... Bd7 {[%clk
0:02:13.8]} 7. Rb1 {[%clk 0:01:59.3]} 7... Qxd4 {[%clk 0:02:04]} 8. Ne2 {[%clk
0:01:59.3]} 8... Qb6 {[%clk 0:02:02]} 9. Be3 {[%clk 0:01:51.9]} 9... Qc7 {[%clk
0:01:55.3]} 10. Nb5 {[%clk 0:01:51.2]} 10... Bxb5 {[%clk 0:01:54.6]} 11. Bxb5+
{[%clk 0:01:52.1]} 11... Nc6 {[%clk 0:01:55.4]} 12. Nd4 {[%clk 0:01:49.8]} 12...
e5 {[%clk 0:01:47.8]} 13. Nxc6 {[%clk 0:01:49.2]} 13... bxc6 {[%clk 0:01:48.7]}
14. Ba4 {[%clk 0:01:46.5]} 14... Be7 {[%clk 0:01:40]} 15. O-O {[%clk 0:01:44.8]}
15... O-O {[%clk 0:01:40.3]} 16. Qf3 {[%clk 0:01:42.4]} 16... Rab8 {[%clk
0:01:28.9]} 17. c3 {[%clk 0:01:39.7]} 17... e4 {[%clk 0:01:24.5]} 18. Qh3 {[%clk
0:01:32.4]} 18... Bd6 {[%clk 0:01:23.7]} 19. Bd4 {[%clk 0:01:25.8]} 19... Nd7
{[%clk 0:01:03.9]} 20. Qg4 {[%clk 0:00:50]} 20... Ne5 {[%clk 0:00:59.2]} 21.
Bxe5 {[%clk 0:00:46.6]} 21... Bxe5 {[%clk 0:01:00]} 22. f4 {[%clk 0:00:46.7]}
22... exf3 {[%clk 0:00:49.3]} 23. Rxf3 {[%clk 0:00:43.4]} 23... Bxh2+ {[%clk
0:00:49.6]} 24. Kh1 {[%clk 0:00:35.8]} 24... Be5 {[%clk 0:00:50.1]} 25. Kg1
{[%clk 0:00:19.1]} 25... g6 {[%clk 0:00:49]} 26. Rh3 {[%clk 0:00:18.9]} 26...
Bg7 {[%clk 0:00:43]} 27. Qh4 {[%clk 0:00:18.2]} 27... h5 {[%clk 0:00:42.7]} 28.
g4 {[%clk 0:00:16]} 28... Rfe8 {[%clk 0:00:40.7]} 29. gxh5 {[%clk 0:00:16.4]}
29... Re4 {[%clk 0:00:41.1]} 30. Qg5 {[%clk 0:00:15.3]} 30... Qd7 {[%clk
0:00:30.8]} 31. Rh2 {[%clk 0:00:10.4]} 31... Rg4+ {[%clk 0:00:29.8]} 0-1

[Event "*** Titled Tuesday Blitz"]
[Site "Chess.com"]
[Date "2020.11.03"]
[Round "2"]
[White "johnathan113"]
[Black "ArjunErigaisi2003"]
[Result "0-1"]
[WhiteElo "2619"]
[BlackElo "2986"]
[TimeControl "180+1"]
[EndTime "10:18:35 PST"]
[Termination "ArjunErigaisi2003 won on time"]

1. d4 {[%clk 0:03:00.9]} 1... e6 {[%clk 0:02:57.5]} 2. Nc3 {[%clk 0:03:01]} 2...
d5 {[%clk 0:02:54.9]} 3. e4 {[%clk 0:03:01.1]} 3... Bb4 {[%clk 0:02:53.9]} 4. e5
{[%clk 0:03:00]} 4... c5 {[%clk 0:02:54.3]} 5. Bd2 {[%clk 0:03:00.5]} 5... Nh6
{[%clk 0:02:52.4]} 6. a3 {[%clk 0:02:59.3]} 6... Bxc3 {[%clk 0:02:48.3]} 7. Bxc3
{[%clk 0:03:00.2]} 7... Nc6 {[%clk 0:02:46.2]} 8. dxc5 {[%clk 0:02:39.5]} 8...
d4 {[%clk 0:02:47.1]} 9. Bd2 {[%clk 0:02:39.9]} 9... Nxe5 {[%clk 0:02:33.7]} 10.
Bxh6 {[%clk 0:02:37.8]} 10... gxh6 {[%clk 0:02:34.6]} 11. Bb5+ {[%clk
0:02:05.6]} 11... Kf8 {[%clk 0:02:23.2]} 12. Qd2 {[%clk 0:01:49.8]} 12... Qd5
{[%clk 0:02:06.6]} 13. Qxh6+ {[%clk 0:01:44]} 13... Ke7 {[%clk 0:02:05.6]} 14.
Qg5+ {[%clk 0:01:42.5]} 14... f6 {[%clk 0:01:45.8]} 15. Qg7+ {[%clk 0:01:38.7]}
15... Nf7 {[%clk 0:01:46.3]} 16. O-O-O {[%clk 0:01:32.4]} 16... Bd7 {[%clk
0:01:29.1]} 17. Bxd7 {[%clk 0:01:27]} 17... Rag8 {[%clk 0:01:28.5]} 18. Qxh8
{[%clk 0:01:01.3]} 18... Nxh8 {[%clk 0:01:29.4]} 19. Ba4 {[%clk 0:01:01]} 19...
Rxg2 {[%clk 0:01:00]} 20. Ne2 {[%clk 0:00:59.9]} 20... e5 {[%clk 0:00:58.5]} 21.
Rhe1 {[%clk 0:00:49.7]} 21... Kf8 {[%clk 0:00:56.5]} 22. Nf4 {[%clk 0:00:16.8]}
22... exf4 {[%clk 0:00:52]} 23. Re8+ {[%clk 0:00:17.7]} 23... Kg7 {[%clk
0:00:52]} 24. Bb3 {[%clk 0:00:17.1]} 24... Qf3 {[%clk 0:00:42.1]} 25. Rg8+
{[%clk 0:00:17.5]} 25... Kh6 {[%clk 0:00:42]} 26. Rxh8 {[%clk 0:00:17.5]} 26...
Qxf2 {[%clk 0:00:39.5]} 27. Rd8 {[%clk 0:00:16]} 27... Qe3+ {[%clk 0:00:36.9]}
28. Kb1 {[%clk 0:00:16]} 28... Rg1 {[%clk 0:00:37.8]} 29. Rxg1 {[%clk
0:00:11.9]} 29... Qxg1+ {[%clk 0:00:38.7]} 30. Ka2 {[%clk 0:00:12.8]} 30... f3
{[%clk 0:00:39.6]} 31. Rg8 {[%clk 0:00:10.5]} 31... f2 {[%clk 0:00:37.8]} 0-1

[Event "*** Titled Tuesday Blitz"]
[Site "Chess.com"]
[Date "2020.11.03"]
[Round "2"]
[White "talman67"]
[Black "Radzio1987"]
[Result "0-1"]
[WhiteElo "2534"]
[BlackElo "2815"]
[TimeControl "180+1"]
[EndTime "10:18:35 PST"]
[Termination "Radzio1987 won by resignation"]

1. e4 {[%clk 0:02:58.2]} 1... c6 {[%clk 0:03:00.4]} 2. d4 {[%clk 0:02:58]} 2...
d5 {[%clk 0:03:01.3]} 3. e5 {[%clk 0:02:58.7]} 3... Bf5 {[%clk 0:03:00.9]} 4.
Nf3 {[%clk 0:02:59.2]} 4... e6 {[%clk 0:03:01.1]} 5. Be2 {[%clk 0:03:00]} 5...
Nd7 {[%clk 0:03:01.3]} 6. O-O {[%clk 0:02:59.7]} 6... Ne7 {[%clk 0:03:01.3]} 7.
Nbd2 {[%clk 0:02:58.9]} 7... Nc8 {[%clk 0:03:00.6]} 8. Nb3 {[%clk 0:02:58.1]}
8... Be7 {[%clk 0:02:58.5]} 9. c3 {[%clk 0:02:50.4]} 9... Ncb6 {[%clk
0:02:57.8]} 10. Be3 {[%clk 0:02:43]} 10... Nc4 {[%clk 0:02:55.3]} 11. Qc1 {[%clk
0:02:32.6]} 11... a5 {[%clk 0:02:50.6]} 12. a4 {[%clk 0:02:31.3]} 12... Nxe3
{[%clk 0:02:41.1]} 13. fxe3 {[%clk 0:02:25.4]} 13... O-O {[%clk 0:02:40.8]} 14.
Qd2 {[%clk 0:02:24.2]} 14... f6 {[%clk 0:02:34.9]} 15. exf6 {[%clk 0:02:18.2]}
15... Nxf6 {[%clk 0:02:34.7]} 16. Bd3 {[%clk 0:02:16.5]} 16... Bd6 {[%clk
0:02:30.1]} 17. Ng5 {[%clk 0:02:03.8]} 17... Bxh2+ {[%clk 0:02:06.6]} 18. Kh1
{[%clk 0:02:03.4]} 18... Bd6 {[%clk 0:02:06.2]} 19. Bxf5 {[%clk 0:01:58.2]}
19... exf5 {[%clk 0:02:06.4]} 20. Rxf5 {[%clk 0:01:54.4]} 20... Ng4 {[%clk
0:01:48.3]} 21. Qc2 {[%clk 0:01:38.4]} 21... g6 {[%clk 0:01:34.2]} 22. Rxf8+
{[%clk 0:01:30.1]} 22... Qxf8 {[%clk 0:01:34.2]} 23. Qe2 {[%clk 0:01:19.3]}
23... Qh6+ {[%clk 0:01:29.7]} 24. Nh3 {[%clk 0:01:19.3]} 24... Qh4 {[%clk
0:01:28.8]} 25. Qe1 {[%clk 0:01:03.9]} 25... Bg3 {[%clk 0:01:28.6]} 26. Qe2
{[%clk 0:00:54.8]} 26... Nf2+ {[%clk 0:01:17.9]} 27. Kg1 {[%clk 0:00:55.1]}
27... Nxh3+ {[%clk 0:01:18.4]} 28. gxh3 {[%clk 0:00:56]} 28... Qxh3 {[%clk
0:01:19.3]} 29. Rf1 {[%clk 0:00:49.6]} 29... Re8 {[%clk 0:01:16.8]} 30. Rf3
{[%clk 0:00:43.8]} 30... b6 {[%clk 0:01:03.5]} 31. Qg2 {[%clk 0:00:39.8]} 31...
Qxg2+ {[%clk 0:01:01.8]} 32. Kxg2 {[%clk 0:00:40.7]} 32... Bh4 {[%clk
0:01:02.4]} 33. Nc1 {[%clk 0:00:37.9]} 33... Bg5 {[%clk 0:01:02.3]} 34. Kf2
{[%clk 0:00:37.9]} 34... Kg7 {[%clk 0:01:02.7]} 35. Nd3 {[%clk 0:00:37.4]} 35...
Bf6 {[%clk 0:01:03.2]} 36. b4 {[%clk 0:00:33.3]} 36... axb4 {[%clk 0:00:59.7]}
37. cxb4 {[%clk 0:00:21]} 37... Ra8 {[%clk 0:00:57.9]} 38. Nb2 {[%clk 0:00:10]}
38... Be7 {[%clk 0:00:53.7]} 39. b5 {[%clk 0:00:03.6]} 39... cxb5 {[%clk
0:00:53.2]} 40. axb5 {[%clk 0:00:04.5]} 40... Ra2 {[%clk 0:00:53.1]} 0-1

[Event "*** Titled Tuesday Blitz"]
[Site "Chess.com"]
[Date "2020.11.03"]
[Round "2"]
[White "Sacbutt"]
[Black "Snegokhod"]
[Result "0-1"]
[WhiteElo "2296"]
[BlackElo "2472"]
[TimeControl "180+1"]
[EndTime "10:18:37 PST"]
[Termination "Snegokhod won by resignation"]

1. e4 {[%clk 0:03:00.9]} 1... e5 {[%clk 0:02:59.6]} 2. Nf3 {[%clk 0:03:00.9]}
2... f6 {[%clk 0:02:59.5]} 3. d4 {[%clk 0:02:59.1]} 3... d5 {[%clk 0:02:59.2]}
4. Nc3 {[%clk 0:02:54.9]} 4... Bb4 {[%clk 0:02:57.5]} 5. exd5 {[%clk 0:02:52.9]}
5... e4 {[%clk 0:02:55.4]} 6. Nd2 {[%clk 0:02:49.5]} 6... f5 {[%clk 0:02:55]} 7.
Bc4 {[%clk 0:02:45.7]} 7... Nf6 {[%clk 0:02:54.6]} 8. O-O {[%clk 0:02:40.4]}
8... O-O {[%clk 0:02:54.2]} 9. d6+ {[%clk 0:02:37.8]} 9... Kh8 {[%clk
0:02:53.8]} 10. dxc7 {[%clk 0:02:34.9]} 10... Qxc7 {[%clk 0:02:53.6]} 11. Nb5
{[%clk 0:02:22.5]} 11... Qb6 {[%clk 0:02:41.7]} 12. c3 {[%clk 0:02:19.8]} 12...
Be7 {[%clk 0:02:40.9]} 13. Re1 {[%clk 0:02:00.2]} 13... a6 {[%clk 0:02:40.4]}
14. Na3 {[%clk 0:01:59.4]} 14... Bxa3 {[%clk 0:02:39.2]} 15. bxa3 {[%clk
0:02:00.3]} 15... Nc6 {[%clk 0:02:37.1]} 16. Nb3 {[%clk 0:01:47.7]} 16... Qc7
{[%clk 0:02:34]} 17. Be2 {[%clk 0:01:30.8]} 17... Ne7 {[%clk 0:02:31]} 18. Bb2
{[%clk 0:01:27.4]} 18... Be6 {[%clk 0:02:16.9]} 19. Rc1 {[%clk 0:01:27.5]} 19...
b5 {[%clk 0:02:14.1]} 20. Qd2 {[%clk 0:01:19.6]} 20... Bc4 {[%clk 0:02:12.3]}
21. Bxc4 {[%clk 0:01:18.1]} 21... Qxc4 {[%clk 0:02:12]} 22. Qe2 {[%clk
0:01:16.6]} 22... Rfc8 {[%clk 0:01:55.6]} 23. Qxc4 {[%clk 0:01:16.4]} 23... Rxc4
{[%clk 0:01:53.6]} 24. Nd2 {[%clk 0:01:13.5]} 24... Rc7 {[%clk 0:01:44.3]} 25.
c4 {[%clk 0:01:13.9]} 25... bxc4 {[%clk 0:01:43.9]} 26. Rxc4 {[%clk 0:01:13.1]}
26... Rac8 {[%clk 0:01:43.8]} 27. Rec1 {[%clk 0:01:12.3]} 27... Rxc4 {[%clk
0:01:42.2]} 28. Rxc4 {[%clk 0:01:12.2]} 28... Rxc4 {[%clk 0:01:39.8]} 29. Nxc4
{[%clk 0:01:12]} 29... Kg8 {[%clk 0:01:39.8]} 30. f3 {[%clk 0:01:07.3]} 30...
Kf7 {[%clk 0:01:38.8]} 31. fxe4 {[%clk 0:01:06.9]} 31... fxe4 {[%clk 0:01:34.1]}
32. Kf2 {[%clk 0:01:05.5]} 32... Ned5 {[%clk 0:01:31.4]} 33. h3 {[%clk
0:01:05.4]} 33... Ke6 {[%clk 0:01:27.1]} 34. a4 {[%clk 0:00:56.8]} 34... Nd7
{[%clk 0:01:25]} 35. Ne3 {[%clk 0:00:48.2]} 35... Nxe3 {[%clk 0:01:14.4]} 36.
Kxe3 {[%clk 0:00:49.1]} 36... Kd5 {[%clk 0:01:14.2]} 37. a5 {[%clk 0:00:45.6]}
37... Nf6 {[%clk 0:01:06.2]} 38. Ba3 {[%clk 0:00:42.7]} 38... g6 {[%clk
0:01:04.5]} 39. Bc5 {[%clk 0:00:40.5]} 39... Ne8 {[%clk 0:01:03.1]} 40. Bb6
{[%clk 0:00:38.8]} 40... Ng7 {[%clk 0:01:02.3]} 41. a3 {[%clk 0:00:36.2]} 41...
Nf5+ {[%clk 0:01:01.2]} 42. Kf4 {[%clk 0:00:31.9]} 42... Nxd4 {[%clk 0:01:01.4]}
43. g4 {[%clk 0:00:22.9]} 43... Ne6+ {[%clk 0:00:59.8]} 44. Ke3 {[%clk
0:00:22.9]} 44... g5 {[%clk 0:00:58.5]} 45. Ba7 {[%clk 0:00:21]} 45... Nf4
{[%clk 0:00:56.5]} 46. h4 {[%clk 0:00:20.9]} 46... Ng2+ {[%clk 0:00:56.4]} 47.
Kf2 {[%clk 0:00:21.3]} 47... Nxh4 {[%clk 0:00:56.4]} 48. Be3 {[%clk 0:00:21.1]}
48... Nf3 {[%clk 0:00:55.5]} 0-1

[Event "*** Titled Tuesday Blitz"]
[Site "Chess.com"]
[Date "2020.11.03"]
[Round "2"]
[White "ViktoriyaTarasova"]
[Black "Manukyan_Artak"]
[Result "1-0"]
[WhiteElo "2264"]
[BlackElo "2428"]
[TimeControl "180+1"]
[EndTime "10:18:38 PST"]
[Termination "ViktoriyaTarasova won by resignation"]

1. d4 {[%clk 0:02:48.9]} 1... Nf6 {[%clk 0:02:59.2]} 2. c4 {[%clk 0:02:48.3]}
2... e6 {[%clk 0:02:59.3]} 3. Nc3 {[%clk 0:02:48.1]} 3... Bb4 {[%clk 0:02:58.5]}
4. Qc2 {[%clk 0:02:48]} 4... d5 {[%clk 0:02:57.6]} 5. cxd5 {[%clk 0:02:47.7]}
5... exd5 {[%clk 0:02:57.7]} 6. Bg5 {[%clk 0:02:47.9]} 6... O-O {[%clk
0:02:56.1]} 7. e3 {[%clk 0:02:47.5]} 7... Bg4 {[%clk 0:02:52.2]} 8. Bd3 {[%clk
0:02:46.9]} 8... h6 {[%clk 0:02:50.5]} 9. Bh4 {[%clk 0:02:46.9]} 9... Nbd7
{[%clk 0:02:48.2]} 10. h3 {[%clk 0:02:46.3]} 10... Be6 {[%clk 0:02:48.1]} 11.
Ne2 {[%clk 0:02:46.3]} 11... c5 {[%clk 0:02:47.5]} 12. Nf4 {[%clk 0:02:38.6]}
12... cxd4 {[%clk 0:02:46]} 13. exd4 {[%clk 0:02:38.2]} 13... Rc8 {[%clk
0:02:46.1]} 14. Nxe6 {[%clk 0:02:30.1]} 14... fxe6 {[%clk 0:02:45.7]} 15. O-O
{[%clk 0:02:30.7]} 15... Qa5 {[%clk 0:02:40.8]} 16. Qe2 {[%clk 0:02:21.3]} 16...
Rce8 {[%clk 0:02:38.3]} 17. Rac1 {[%clk 0:02:16.1]} 17... e5 {[%clk 0:02:30.7]}
18. dxe5 {[%clk 0:01:36.1]} 18... Rxe5 {[%clk 0:02:23.9]} 19. Qc2 {[%clk
0:01:32.9]} 19... Nc5 {[%clk 0:02:19.9]} 20. Bg6 {[%clk 0:01:26.8]} 20... d4
{[%clk 0:02:03.3]} 21. Ne2 {[%clk 0:01:01.5]} 21... Bd2 {[%clk 0:01:38.5]} 22.
Qc4+ {[%clk 0:00:52.5]} 22... Kh8 {[%clk 0:01:37.7]} 23. Rcd1 {[%clk 0:00:52.6]}
23... b5 {[%clk 0:01:29.9]} 24. Qxd4 {[%clk 0:00:49.4]} 24... Rxe2 {[%clk
0:01:29.6]} 25. Qxc5 {[%clk 0:00:48.5]} 25... Bb4 {[%clk 0:01:26.9]} 26. Qd4
{[%clk 0:00:41.4]} 26... Qxa2 {[%clk 0:01:23.5]} 27. Qxb4 {[%clk 0:00:26.3]}
27... Qxb2 {[%clk 0:01:23.1]} 28. Qxb2 {[%clk 0:00:24.3]} 28... Rxb2 {[%clk
0:01:24]} 29. Bxf6 {[%clk 0:00:23.4]} 29... gxf6 {[%clk 0:01:23.3]} 30. Rd7
{[%clk 0:00:23.8]} 30... b4 {[%clk 0:01:16.2]} 31. Re1 {[%clk 0:00:23.9]} 31...
Rc8 {[%clk 0:01:07.9]} 32. Ree7 {[%clk 0:00:23.1]} 32... b3 {[%clk 0:01:04.1]}
33. Rh7+ {[%clk 0:00:22]} 33... Kg8 {[%clk 0:01:04.1]} 34. Rhg7+ {[%clk
0:00:20.8]} 34... Kh8 {[%clk 0:01:03.2]} 35. Rxa7 {[%clk 0:00:16.2]} 35... Ra2
{[%clk 0:01:02.2]} 36. Rab7 {[%clk 0:00:14.7]} 36... b2 {[%clk 0:01:02.3]} 37.
Rh7+ {[%clk 0:00:15.3]} 37... Kg8 {[%clk 0:01:02]} 38. Rhg7+ {[%clk 0:00:12.9]}
38... Kh8 {[%clk 0:01:00.1]} 39. Rh7+ {[%clk 0:00:12.3]} 39... Kg8 {[%clk
0:01:00.3]} 40. Bf7+ {[%clk 0:00:12.3]} 40... Kf8 {[%clk 0:00:59.1]} 41. Bxa2
{[%clk 0:00:12.5]} 1-0

[Event "*** Titled Tuesday Blitz"]
[Site "Chess.com"]
[Date "2020.11.03"]
[Round "2"]
[White "ajian"]
[Black "Enriquack"]
[Result "0-1"]
[WhiteElo "2423"]
[BlackElo "2248"]
[TimeControl "180+1"]
[EndTime "10:18:39 PST"]
[Termination "Enriquack won by resignation"]

1. d4 {[%clk 0:03:00.9]} 1... Nf6 {[%clk 0:01:37.9]} 2. Bg5 {[%clk 0:02:37.3]}
2... c5 {[%clk 0:01:36.9]} 3. d5 {[%clk 0:02:36]} 3... Qb6 {[%clk 0:01:36.9]} 4.
Bxf6 {[%clk 0:02:30.1]} 4... gxf6 {[%clk 0:01:36.1]} 5. Nd2 {[%clk 0:02:27.8]}
5... f5 {[%clk 0:01:34.1]} 6. e3 {[%clk 0:02:21.4]} 6... Bg7 {[%clk 0:01:33.2]}
7. Nc4 {[%clk 0:02:21.5]} 7... Qg6 {[%clk 0:01:30.4]} 8. a4 {[%clk 0:02:18]}
8... d6 {[%clk 0:01:29.1]} 9. Nf3 {[%clk 0:02:15.8]} 9... Nd7 {[%clk 0:01:27.9]}
10. Bd3 {[%clk 0:02:13.6]} 10... Nf6 {[%clk 0:01:20.9]} 11. Be2 {[%clk
0:01:54.9]} 11... Ne4 {[%clk 0:01:18.5]} 12. O-O {[%clk 0:01:50.6]} 12... Bf6
{[%clk 0:01:14.8]} 13. Nfd2 {[%clk 0:01:47.7]} 13... Rg8 {[%clk 0:01:11.9]} 14.
Bf3 {[%clk 0:01:47.5]} 14... Bd7 {[%clk 0:01:08]} 15. c3 {[%clk 0:01:41.3]}
15... h5 {[%clk 0:01:05.5]} 16. Qc2 {[%clk 0:01:36.4]} 16... Ng5 {[%clk
0:01:05.1]} 17. g3 {[%clk 0:01:25.9]} 17... h4 {[%clk 0:00:47.5]} 18. Bg2 {[%clk
0:01:17]} 18... Rh8 {[%clk 0:00:45]} 19. e4 {[%clk 0:01:11.2]} 19... f4 {[%clk
0:00:43.2]} 20. Rac1 {[%clk 0:00:50.6]} 20... hxg3 {[%clk 0:00:34]} 21. fxg3
{[%clk 0:00:50.3]} 21... fxg3 {[%clk 0:00:34.1]} 22. hxg3 {[%clk 0:00:49.3]}
22... Qh6 {[%clk 0:00:34.1]} 23. Nf3 {[%clk 0:00:27.1]} 23... Bg4 {[%clk
0:00:31.2]} 24. Nh4 {[%clk 0:00:24.7]} 24... Nh3+ {[%clk 0:00:29.7]} 25. Bxh3
{[%clk 0:00:24.6]} 25... Bxh3 {[%clk 0:00:29.4]} 26. Rf4 {[%clk 0:00:21]} 26...
Bg5 {[%clk 0:00:29.1]} 27. Ng2 {[%clk 0:00:12.6]} 27... Bxg2 {[%clk 0:00:27.4]}
28. Qxg2 {[%clk 0:00:12]} 28... Bxf4 {[%clk 0:00:28]} 29. gxf4 {[%clk
0:00:12.2]} 29... O-O-O {[%clk 0:00:26.7]} 30. Qg4+ {[%clk 0:00:11.4]} 30... Kb8
{[%clk 0:00:26.7]} 31. Kf2 {[%clk 0:00:11.9]} 31... Rdg8 {[%clk 0:00:26.7]} 32.
Qf3 {[%clk 0:00:11.8]} 32... Qh2+ {[%clk 0:00:26.5]} 33. Ke3 {[%clk 0:00:12]}
33... Rh3 {[%clk 0:00:26.9]} 34. Rf1 {[%clk 0:00:10.6]} 34... Rxf3+ {[%clk
0:00:26.8]} 35. Rxf3 {[%clk 0:00:11.5]} 35... Qg1+ {[%clk 0:00:27.2]} 36. Kd3
{[%clk 0:00:11.5]} 36... Qb1+ {[%clk 0:00:27.8]} 37. Ke3 {[%clk 0:00:11.1]}
37... Qa2 {[%clk 0:00:28.1]} 38. Nd2 {[%clk 0:00:11]} 38... Qxa4 {[%clk
0:00:28.2]} 39. Rg3 {[%clk 0:00:11.2]} 39... Rxg3+ {[%clk 0:00:27.6]} 0-1